[Event "Titled Tuesday Blitz September 27 Early 2022"]
[White "Thiel, Thomas"]
[Black "Mihailidis, Anastasios"]
[WhiteFideId "4615964"]
[BlackFideId "4205588"]
[WhiteElo "2212"]
[BlackElo "2312"]
[Result "1-0"]
[Round "11"]
[TimeControl "180+1"]
[Date "2022.09.27"]
[WhiteClock "0:01:15"]
[BlackClock "0:00:20"]

1. e4 {[%clk 0:03:00]}  c5 {[%clk 0:02:59]} 2. Nc3 {[%clk 0:02:59]}  Nc6 {[%clk 0:02:58]} 3. Bb5 {[%clk 0:02:58]}  Nd4 {[%clk 0:02:55]} 4. Bc4 {[%clk 0:02:58]}  e6 {[%clk 0:02:54]} 5. Nge2 {[%clk 0:02:58]}  Nxe2 {[%clk 0:02:45]} 6. Qxe2 {[%clk 0:02:57]}  Ne7 {[%clk 0:02:41]} 7. O-O {[%clk 0:02:55]}  d5 {[%clk 0:02:39]} 8. exd5 {[%clk 0:02:53]}  exd5 {[%clk 0:02:39]} 9. Nxd5 {[%clk 0:02:53]}  Be6 {[%clk 0:02:35]} 10. Bb5+ {[%clk 0:02:48]}  Nc6 {[%clk 0:02:31]} 11. Nf4 {[%clk 0:02:42]}  Qd6 {[%clk 0:02:22]} 12. Nxe6 {[%clk 0:02:36]}  Qxe6 {[%clk 0:02:18]} 13. Qxe6+ {[%clk 0:02:34]}  fxe6 {[%clk 0:02:18]} 14. Bxc6+ {[%clk 0:02:31]}  bxc6 {[%clk 0:02:18]} 15. d3 {[%clk 0:02:31]}  Kd7 {[%clk 0:02:17]} 16. Re1 {[%clk 0:02:27]}  g6 {[%clk 0:02:17]} 17. Re4 {[%clk 0:02:25]}  Bg7 {[%clk 0:02:16]} 18. Rc4 {[%clk 0:02:23]}  Rab8 {[%clk 0:02:11]} 19. Rb1 {[%clk 0:02:21]}  Kd6 {[%clk 0:02:08]} 20. Bf4+ {[%clk 0:02:17]}  e5 {[%clk 0:02:04]} 21. Be3 {[%clk 0:02:17]}  Rb5 {[%clk 0:02:03]} 22. a4 {[%clk 0:02:14]}  Ra5 {[%clk 0:01:58]} 23. b3 {[%clk 0:02:10]}  Rb8 {[%clk 0:01:47]} 24. Re1 {[%clk 0:02:00]}  Kd5 {[%clk 0:01:44]} 25. Re4 {[%clk 0:01:53]}  Re8 {[%clk 0:01:32]} 26. Bd2 {[%clk 0:01:52]}  Ra6 {[%clk 0:01:31]} 27. Bc3 {[%clk 0:01:52]}  Rb6 {[%clk 0:01:26]} 28. f4 {[%clk 0:01:50]}  Rb7 {[%clk 0:01:21]} 29. fxe5 {[%clk 0:01:49]}  Rbe7 {[%clk 0:01:20]} 30. Kf2 {[%clk 0:01:47]}  Bxe5 {[%clk 0:01:04]} 31. Bxe5 {[%clk 0:01:47]}  Rxe5 {[%clk 0:01:04]} 32. Rxe5+ {[%clk 0:01:47]}  Rxe5 {[%clk 0:01:05]} 33. Rxe5+ {[%clk 0:01:46]}  Kxe5 {[%clk 0:01:05]} 34. Ke3 {[%clk 0:01:45]}  Kd5 {[%clk 0:01:05]} 35. c3 {[%clk 0:01:40]}  a5 {[%clk 0:00:56]} 36. Kf4 {[%clk 0:01:35]}  h6 {[%clk 0:00:52]} 37. h4 {[%clk 0:01:32]}  Ke6 {[%clk 0:00:41]} 38. Ke4 {[%clk 0:01:30]}  g5 {[%clk 0:00:24]} 39. h5 {[%clk 0:01:27]}  Kf6 {[%clk 0:00:21]} 40. d4 {[%clk 0:01:24]}  cxd4 {[%clk 0:00:22]} 41. Kxd4 {[%clk 0:01:23]}  Kf5 {[%clk 0:00:19]} 42. b4 {[%clk 0:01:19]}  axb4 {[%clk 0:00:17]} 43. cxb4 {[%clk 0:01:20]}  Ke6 {[%clk 0:00:17]} 44. a5 {[%clk 0:01:20]}  Kd7 {[%clk 0:00:18]} 45. Kc5 {[%clk 0:01:19]}  Kc7 {[%clk 0:00:18]} 46. g4 {[%clk 0:01:18]}  Kb7 {[%clk 0:00:18]} 47. Kd6 {[%clk 0:01:18]}  Ka6 {[%clk 0:00:16]} 48. Kxc6 {[%clk 0:01:18]}  Ka7 {[%clk 0:00:16]} 49. b5 {[%clk 0:01:16]}  Kb8 {[%clk 0:00:17]} 50. Kd6 {[%clk 0:01:15]}  Kc8 {[%clk 0:00:16]} 51. Ke6 {[%clk 0:01:15]}  Kc7 {[%clk 0:00:16]} 52. Kf6 {[%clk 0:01:15]}  Kd6 {[%clk 0:00:17]} 53. Kg6 {[%clk 0:01:15]}  Kc5 {[%clk 0:00:18]} 54. Kxh6 {[%clk 0:01:15]}  Kxb5 {[%clk 0:00:19]} 55. Kxg5 {[%clk 0:01:15]}  Kxa5 {[%clk 0:00:20]} 56. h6 {[%clk 0:01:15]} 1-0


[Site "https://www.chess.com"]

[Event "Titled Tuesday Blitz September 27 Early 2022"]
[White "Thorhallsson, Simon"]
[Black "Zaksaite, Salomeja"]
[WhiteFideId "2310090"]
[BlackFideId "12801496"]
[WhiteElo "2137"]
[BlackElo "1953"]
[Result "1-0"]
[Round "11"]
[TimeControl "180+1"]
[Date "2022.09.27"]
[WhiteClock "0:01:31"]
[BlackClock "0:00:58"]

1. e4 {[%clk 0:03:00]}  c5 {[%clk 0:02:45]} 2. Nc3 {[%clk 0:03:00]}  e6 {[%clk 0:02:44]} 3. Nge2 {[%clk 0:02:59]}  Nc6 {[%clk 0:02:42]} 4. g3 {[%clk 0:02:59]}  g6 {[%clk 0:02:40]} 5. d4 {[%clk 0:02:58]}  d6 {[%clk 0:02:37]} 6. dxc5 {[%clk 0:02:56]}  dxc5 {[%clk 0:02:37]} 7. Qxd8+ {[%clk 0:02:55]}  Kxd8 {[%clk 0:02:32]} 8. Be3 {[%clk 0:02:53]}  a6 {[%clk 0:02:30]} 9. Na4 {[%clk 0:02:44]}  Kc7 {[%clk 0:02:25]} 10. Nxc5 {[%clk 0:02:30]}  Nf6 {[%clk 0:02:24]} 11. f3 {[%clk 0:02:26]}  Ne5 {[%clk 0:02:14]} 12. Bf4 {[%clk 0:02:14]}  Bd6 {[%clk 0:02:08]} 13. Bxe5 {[%clk 0:02:11]}  Bxe5 {[%clk 0:02:05]} 14. Nd3 {[%clk 0:02:12]}  Nd7 {[%clk 0:02:00]} 15. f4 {[%clk 0:02:05]}  Bg7 {[%clk 0:01:59]} 16. e5 {[%clk 0:02:06]}  b6 {[%clk 0:01:55]} 17. Bg2 {[%clk 0:02:06]}  Rb8 {[%clk 0:01:54]} 18. O-O-O {[%clk 0:02:04]}  Bb7 {[%clk 0:01:37]} 19. Bxb7 {[%clk 0:02:02]}  Rxb7 {[%clk 0:01:36]} 20. Nc3 {[%clk 0:01:56]}  Rc8 {[%clk 0:01:29]} 21. Nb4 {[%clk 0:01:51]}  a5 {[%clk 0:01:12]} 22. Nb5+ {[%clk 0:01:34]}  Kd8 {[%clk 0:01:06]} 23. Nd6 {[%clk 0:01:33]}  Rbc7 {[%clk 0:01:01]} 24. Nxc8 {[%clk 0:01:32]}  axb4 {[%clk 0:00:58]} 25. Nxb6 {[%clk 0:01:31]} 1-0


[Site "https://www.chess.com"]

[Event "Titled Tuesday Blitz September 27 Early 2022"]
[White "Torres Boch, Jose Francisco"]
[Black "Korelskiy, Egor"]
[WhiteFideId "2278383"]
[BlackFideId "34329064"]
[WhiteElo "2088"]
[BlackElo "2071"]
[Result "0-1"]
[Round "11"]
[TimeControl "180+1"]
[Date "2022.09.27"]
[WhiteClock "0:00:03"]
[BlackClock "0:00:21"]

1. e4 {[%clk 0:02:57]}  c5 {[%clk 0:02:59]} 2. Nf3 {[%clk 0:02:57]}  e6 {[%clk 0:02:59]} 3. d4 {[%clk 0:02:57]}  cxd4 {[%clk 0:03:00]} 4. Nxd4 {[%clk 0:02:58]}  a6 {[%clk 0:03:00]} 5. Bd3 {[%clk 0:02:56]}  Nf6 {[%clk 0:03:00]} 6. O-O {[%clk 0:02:47]}  Qc7 {[%clk 0:02:59]} 7. Qe2 {[%clk 0:02:47]}  d6 {[%clk 0:03:00]} 8. f4 {[%clk 0:02:36]}  Nbd7 {[%clk 0:02:59]} 9. c4 {[%clk 0:02:31]}  b6 {[%clk 0:02:58]} 10. b3 {[%clk 0:02:23]}  Be7 {[%clk 0:02:57]} 11. Bb2 {[%clk 0:02:23]}  O-O {[%clk 0:02:57]} 12. Nc3 {[%clk 0:02:15]}  Bb7 {[%clk 0:02:57]} 13. Rae1 {[%clk 0:02:12]}  Rfd8 {[%clk 0:02:53]} 14. Kh1 {[%clk 0:02:05]}  Rac8 {[%clk 0:02:49]} 15. Nf3 {[%clk 0:01:49]}  h6 {[%clk 0:02:41]} 16. h3 {[%clk 0:01:44]}  Nh5 {[%clk 0:02:40]} 17. Qf2 {[%clk 0:01:31]}  Nxf4 {[%clk 0:02:36]} 18. Nh4 {[%clk 0:01:22]}  Bxh4 {[%clk 0:02:09]} 19. Qxf4 {[%clk 0:01:17]}  Bf6 {[%clk 0:02:09]} 20. e5 {[%clk 0:00:48]}  dxe5 {[%clk 0:02:01]} 21. Qg4 {[%clk 0:00:45]}  Kh8 {[%clk 0:01:53]} 22. Ne4 {[%clk 0:00:43]}  Bxe4 {[%clk 0:01:50]} 23. Qxe4 {[%clk 0:00:40]}  g6 {[%clk 0:01:41]} 24. Rxf6 {[%clk 0:00:37]}  Nxf6 {[%clk 0:01:40]} 25. Bxe5 {[%clk 0:00:37]}  Qe7 {[%clk 0:01:33]} 26. Rf1 {[%clk 0:00:32]}  Kg7 {[%clk 0:01:28]} 27. Qf3 {[%clk 0:00:22]}  Kg8 {[%clk 0:01:23]} 28. Bxf6 {[%clk 0:00:20]}  Qd7 {[%clk 0:01:20]} 29. Bxd8 {[%clk 0:00:20]}  Rxd8 {[%clk 0:01:21]} 30. Be4 {[%clk 0:00:17]}  f5 {[%clk 0:01:20]} 31. Bb1 {[%clk 0:00:14]}  Kh7 {[%clk 0:01:12]} 32. Qe3 {[%clk 0:00:15]}  Qd6 {[%clk 0:01:10]} 33. Re1 {[%clk 0:00:15]}  a5 {[%clk 0:01:04]} 34. Bc2 {[%clk 0:00:12]}  Re8 {[%clk 0:01:02]} 35. Qe5 {[%clk 0:00:10]}  Qd7 {[%clk 0:00:55]} 36. Bd1 {[%clk 0:00:10]}  h5 {[%clk 0:00:53]} 37. Bf3 {[%clk 0:00:11]}  Re7 {[%clk 0:00:40]} 38. Rd1 {[%clk 0:00:11]}  Qe8 {[%clk 0:00:38]} 39. Rd6 {[%clk 0:00:11]}  Qb8 {[%clk 0:00:34]} 40. Bc6 {[%clk 0:00:10]}  Qc7 {[%clk 0:00:30]} 41. Qd4 {[%clk 0:00:09]}  e5 {[%clk 0:00:28]} 42. Qd5 {[%clk 0:00:10]}  Kh6 {[%clk 0:00:23]} 43. Rd7 {[%clk 0:00:10]}  Rxd7 {[%clk 0:00:23]} 44. Qxd7 {[%clk 0:00:09]}  Qb8 {[%clk 0:00:23]} 45. Bd5 {[%clk 0:00:07]}  e4 {[%clk 0:00:23]} 46. Qe6 {[%clk 0:00:03]}  Qg3 {[%clk 0:00:21]} 0-1


[Site "https://www.chess.com"]

[Event "Titled Tuesday Blitz September 27 Early 2022"]
[White "Wartiovaara, Oliver"]
[Black "Harish, Neeraj"]
[WhiteFideId "513024"]
[BlackFideId "30958130"]
[WhiteElo "1971"]
[BlackElo "1574"]
[Result "1-0"]
[Round "11"]
[TimeControl "180+1"]
[Date "2022.09.27"]
[WhiteClock "0:01:16"]
[BlackClock "0:00:26"]

1. d4 {[%clk 0:03:00]}  Nf6 {[%clk 0:02:59]} 2. Nf3 {[%clk 0:02:55]}  d5 {[%clk 0:02:58]} 3. e3 {[%clk 0:02:48]}  Bf5 {[%clk 0:02:53]} 4. b3 {[%clk 0:02:47]}  e6 {[%clk 0:02:53]} 5. Bb2 {[%clk 0:02:47]}  Bd6 {[%clk 0:02:47]} 6. Nbd2 {[%clk 0:02:45]}  O-O {[%clk 0:02:47]} 7. Be2 {[%clk 0:02:43]}  c5 {[%clk 0:02:47]} 8. dxc5 {[%clk 0:02:42]}  Bxc5 {[%clk 0:02:48]} 9. O-O {[%clk 0:02:42]}  Nc6 {[%clk 0:02:47]} 10. a3 {[%clk 0:02:37]}  a6 {[%clk 0:02:46]} 11. b4 {[%clk 0:02:34]}  Bd6 {[%clk 0:02:42]} 12. c4 {[%clk 0:02:33]}  Re8 {[%clk 0:02:33]} 13. cxd5 {[%clk 0:02:23]}  exd5 {[%clk 0:02:26]} 14. Nb3 {[%clk 0:02:20]}  Qe7 {[%clk 0:02:20]} 15. Rc1 {[%clk 0:02:12]}  Rad8 {[%clk 0:02:19]} 16. Nbd4 {[%clk 0:02:07]}  Nxd4 {[%clk 0:02:11]} 17. Qxd4 {[%clk 0:02:07]}  h5 {[%clk 0:01:55]} 18. h3 {[%clk 0:01:58]}  Be4 {[%clk 0:01:39]} 19. Ng5 {[%clk 0:01:53]}  Be5 {[%clk 0:01:35]} 20. Qxe5 {[%clk 0:01:51]}  Qxe5 {[%clk 0:01:35]} 21. Bxe5 {[%clk 0:01:52]}  Rxe5 {[%clk 0:01:35]} 22. Nf3 {[%clk 0:01:47]}  Bxf3 {[%clk 0:01:26]} 23. Bxf3 {[%clk 0:01:48]}  d4 {[%clk 0:01:16]} 24. Rfd1 {[%clk 0:01:42]}  d3 {[%clk 0:01:14]} 25. Rc3 {[%clk 0:01:39]}  d2 {[%clk 0:01:06]} 26. Rc2 {[%clk 0:01:38]}  Ne4 {[%clk 0:00:57]} 27. Bxe4 {[%clk 0:01:38]}  Rxe4 {[%clk 0:00:58]} 28. Rcxd2 {[%clk 0:01:38]}  Rxd2 {[%clk 0:00:58]} 29. Rxd2 {[%clk 0:01:39]}  Rc4 {[%clk 0:00:58]} 30. Rd8+ {[%clk 0:01:36]}  Kh7 {[%clk 0:00:58]} 31. Rd7 {[%clk 0:01:37]}  Rc3 {[%clk 0:00:58]} 32. Rxb7 {[%clk 0:01:33]}  Kg6 {[%clk 0:00:57]} 33. Rb6+ {[%clk 0:01:33]}  f6 {[%clk 0:00:55]} 34. Rxa6 {[%clk 0:01:32]}  Rc1+ {[%clk 0:00:55]} 35. Kh2 {[%clk 0:01:32]}  Kf7 {[%clk 0:00:55]} 36. Kg3 {[%clk 0:01:32]}  Ke7 {[%clk 0:00:54]} 37. Kf3 {[%clk 0:01:32]}  g5 {[%clk 0:00:55]} 38. g4 {[%clk 0:01:30]}  h4 {[%clk 0:00:54]} 39. b5 {[%clk 0:01:27]}  Rb1 {[%clk 0:00:49]} 40. a4 {[%clk 0:01:24]}  Kf7 {[%clk 0:00:49]} 41. Ra7+ {[%clk 0:01:23]}  Kg6 {[%clk 0:00:49]} 42. Ra6 {[%clk 0:01:21]}  Kf7 {[%clk 0:00:37]} 43. b6 {[%clk 0:01:22]}  Ke7 {[%clk 0:00:37]} 44. a5 {[%clk 0:01:20]}  Kd7 {[%clk 0:00:37]} 45. Ra7+ {[%clk 0:01:19]}  Kc6 {[%clk 0:00:37]} 46. Rf7 {[%clk 0:01:17]}  Rb5 {[%clk 0:00:27]} 47. Rxf6+ {[%clk 0:01:16]}  Kb7 {[%clk 0:00:26]} 48. Rf5 {[%clk 0:01:16]} 1-0


[Site "https://www.chess.com"]

[Event "Titled Tuesday Blitz September 27 Early 2022"]
[White "White, John S."]
[Black "Neal, James"]
[WhiteFideId "2502348"]
[BlackFideId "2089300"]
[WhiteElo "1836"]
[BlackElo "2059"]
[Result "0-1"]
[Round "11"]
[TimeControl "180+1"]
[Date "2022.09.27"]
[WhiteClock "0:01:01"]
[BlackClock "0:00:14"]

1. e4 {[%clk 0:02:59]}  e6 {[%clk 0:02:46]} 2. d3 {[%clk 0:02:56]}  d5 {[%clk 0:02:42]} 3. Nd2 {[%clk 0:02:55]}  Nf6 {[%clk 0:02:31]} 4. Ngf3 {[%clk 0:02:53]}  b6 {[%clk 0:02:30]} 5. g3 {[%clk 0:02:52]}  dxe4 {[%clk 0:02:25]} 6. dxe4 {[%clk 0:02:51]}  Bc5 {[%clk 0:02:19]} 7. Bg2 {[%clk 0:02:49]}  Ba6 {[%clk 0:01:50]} 8. c4 {[%clk 0:02:48]}  Qd3 {[%clk 0:01:37]} 9. Qa4+ {[%clk 0:02:27]}  b5 {[%clk 0:00:52]} 10. cxb5 {[%clk 0:01:46]}  Bxf2+ {[%clk 0:00:14]} 11. Kxf2 {[%clk 0:01:26]}  Ng4+ {[%clk 0:00:13]} 12. Ke1 {[%clk 0:01:19]}  Qe3+ {[%clk 0:00:13]} 13. Kd1 {[%clk 0:01:15]}  Nf2+ {[%clk 0:00:13]} 14. Kc2 {[%clk 0:01:01]}  Qd3# {[%clk 0:00:14]} 0-1


[Site "https://www.chess.com"]

[Event "Titled Tuesday Blitz September 27 Early 2022"]
[White "Winkels, Marcel"]
[Black "Seifert, Henryk"]
[WhiteFideId "1003887"]
[BlackFideId "1100963"]
[WhiteElo "1900"]
[BlackElo "2120"]
[Result "1-0"]
[Round "11"]
[TimeControl "180+1"]
[Date "2022.09.27"]
[WhiteClock "0:00:37"]
[BlackClock "0:00:03"]

1. d4 {[%clk 0:03:00]}  d5 {[%clk 0:02:59]} 2. Nc3 {[%clk 0:02:59]}  e6 {[%clk 0:02:58]} 3. Bf4 {[%clk 0:03:00]}  c5 {[%clk 0:02:54]} 4. Nb5 {[%clk 0:02:54]}  Qa5+ {[%clk 0:02:44]} 5. Nc3 {[%clk 0:02:50]}  cxd4 {[%clk 0:02:40]} 6. Qxd4 {[%clk 0:02:49]}  Nc6 {[%clk 0:02:40]} 7. Qa4 {[%clk 0:02:44]}  Qxa4 {[%clk 0:02:22]} 8. Nxa4 {[%clk 0:02:43]}  Nf6 {[%clk 0:02:21]} 9. Nf3 {[%clk 0:02:40]}  Bd7 {[%clk 0:02:15]} 10. O-O-O {[%clk 0:02:37]}  Be7 {[%clk 0:02:11]} 11. Nc3 {[%clk 0:02:33]}  O-O {[%clk 0:02:09]} 12. e3 {[%clk 0:02:32]}  Rac8 {[%clk 0:02:08]} 13. h3 {[%clk 0:02:25]}  a6 {[%clk 0:02:00]} 14. g4 {[%clk 0:02:22]}  Rfd8 {[%clk 0:01:53]} 15. g5 {[%clk 0:02:22]}  Ne8 {[%clk 0:01:49]} 16. h4 {[%clk 0:02:21]}  b5 {[%clk 0:01:46]} 17. Bd3 {[%clk 0:02:19]}  Nb4 {[%clk 0:01:37]} 18. Be2 {[%clk 0:02:18]}  Nd6 {[%clk 0:01:21]} 19. a3 {[%clk 0:02:13]}  Nc6 {[%clk 0:01:11]} 20. h5 {[%clk 0:02:12]}  b4 {[%clk 0:01:03]} 21. axb4 {[%clk 0:02:07]}  Nxb4 {[%clk 0:01:03]} 22. Ne5 {[%clk 0:02:01]}  Be8 {[%clk 0:00:47]} 23. Nd3 {[%clk 0:01:54]}  Nc4 {[%clk 0:00:38]} 24. Bg4 {[%clk 0:01:13]}  Nxd3+ {[%clk 0:00:34]} 25. cxd3 {[%clk 0:01:10]}  Na5 {[%clk 0:00:28]} 26. g6 {[%clk 0:01:06]}  Ba3 {[%clk 0:00:17]} 27. Kb1 {[%clk 0:00:50]}  Bb4 {[%clk 0:00:11]} 28. Rc1 {[%clk 0:00:48]}  Nb3 {[%clk 0:00:10]} 29. Rc2 {[%clk 0:00:47]}  a5 {[%clk 0:00:08]} 30. Ka2 {[%clk 0:00:46]}  a4 {[%clk 0:00:08]} 31. f3 {[%clk 0:00:45]}  d4 {[%clk 0:00:07]} 32. exd4 {[%clk 0:00:42]}  Rxd4 {[%clk 0:00:06]} 33. Be5 {[%clk 0:00:40]}  Rdd8 {[%clk 0:00:05]} 34. d4 {[%clk 0:00:39]}  f6 {[%clk 0:00:05]} 35. Bxe6+ {[%clk 0:00:37]}  Kf8 {[%clk 0:00:04]} 36. Bxc8 {[%clk 0:00:36]}  Rxc8 {[%clk 0:00:03]} 37. gxh7 {[%clk 0:00:37]} 1-0


[Site "https://www.chess.com"]

[Event "Titled Tuesday Blitz September 27 Early 2022"]
[White "Wirig, Anthony"]
[Black "Andreikin, Dmitry"]
[WhiteFideId "615013"]
[BlackFideId "4158814"]
[WhiteElo "2474"]
[BlackElo "2736"]
[Result "0-1"]
[Round "11"]
[TimeControl "180+1"]
[Date "2022.09.27"]
[WhiteClock "0:00:14"]
[BlackClock "0:00:52"]

1. d4 {[%clk 0:02:55]}  Nf6 {[%clk 0:03:00]} 2. Bg5 {[%clk 0:02:53]}  g6 {[%clk 0:02:59]} 3. Bxf6 {[%clk 0:02:54]}  exf6 {[%clk 0:03:00]} 4. h4 {[%clk 0:02:54]}  h5 {[%clk 0:02:57]} 5. e3 {[%clk 0:02:54]}  f5 {[%clk 0:02:57]} 6. g3 {[%clk 0:02:53]}  d5 {[%clk 0:02:56]} 7. Bg2 {[%clk 0:02:53]}  c6 {[%clk 0:02:57]} 8. Nd2 {[%clk 0:02:53]}  Nd7 {[%clk 0:02:56]} 9. Ne2 {[%clk 0:02:53]}  Nf6 {[%clk 0:02:56]} 10. c4 {[%clk 0:02:49]}  dxc4 {[%clk 0:02:55]} 11. Nxc4 {[%clk 0:02:50]}  Be6 {[%clk 0:02:50]} 12. Ne5 {[%clk 0:02:42]}  Bd6 {[%clk 0:02:38]} 13. Nd3 {[%clk 0:02:37]}  Ng4 {[%clk 0:02:34]} 14. Nef4 {[%clk 0:02:28]}  Bc4 {[%clk 0:02:30]} 15. Qc2 {[%clk 0:02:24]}  Qa5+ {[%clk 0:01:57]} 16. Qc3 {[%clk 0:02:06]}  Qa6 {[%clk 0:01:57]} 17. b3 {[%clk 0:01:48]}  Bxd3 {[%clk 0:01:44]} 18. Nxd3 {[%clk 0:01:38]}  Qb6 {[%clk 0:01:43]} 19. a4 {[%clk 0:01:18]}  Qc7 {[%clk 0:01:37]} 20. Nf4 {[%clk 0:01:10]}  Qe7 {[%clk 0:01:36]} 21. Kf1 {[%clk 0:01:02]}  a5 {[%clk 0:01:28]} 22. Bxc6+ {[%clk 0:00:54]}  Kf8 {[%clk 0:01:28]} 23. Bf3 {[%clk 0:00:53]}  Kg7 {[%clk 0:01:28]} 24. Nd5 {[%clk 0:00:37]}  Qd8 {[%clk 0:01:24]} 25. Rc1 {[%clk 0:00:35]}  g5 {[%clk 0:01:20]} 26. hxg5 {[%clk 0:00:35]}  Qxg5 {[%clk 0:01:21]} 27. Nf4 {[%clk 0:00:34]}  Rae8 {[%clk 0:01:18]} 28. Re1 {[%clk 0:00:30]}  Bb4 {[%clk 0:01:16]} 29. Qd3 {[%clk 0:00:26]}  Bxe1 {[%clk 0:01:08]} 30. Kxe1 {[%clk 0:00:27]}  Nxe3 {[%clk 0:01:02]} 31. Nxh5+ {[%clk 0:00:15]}  Rxh5 {[%clk 0:00:56]} 32. Rxh5 {[%clk 0:00:16]}  Ng4+ {[%clk 0:00:53]} 33. Kf1 {[%clk 0:00:14]}  Qxh5 {[%clk 0:00:52]} 0-1


[Site "https://www.chess.com"]

[Event "Titled Tuesday Blitz September 27 Early 2022"]
[White "Wojtaszek, Radoslaw"]
[Black "So, Wesley"]
[WhiteFideId "1118358"]
[BlackFideId "5202213"]
[WhiteElo "2606"]
[BlackElo "2763"]
[Result "1/2-1/2"]
[Round "11"]
[TimeControl "180+1"]
[Date "2022.09.27"]
[WhiteClock "0:00:05"]
[BlackClock "0:00:07"]

1. e4 {[%clk 0:03:00]}  c5 {[%clk 0:02:50]} 2. Nf3 {[%clk 0:03:00]}  d6 {[%clk 0:02:48]} 3. Bb5+ {[%clk 0:02:59]}  Bd7 {[%clk 0:02:45]} 4. Bxd7+ {[%clk 0:02:59]}  Qxd7 {[%clk 0:02:46]} 5. c4 {[%clk 0:02:58]}  Nf6 {[%clk 0:02:43]} 6. Nc3 {[%clk 0:02:58]}  g6 {[%clk 0:02:42]} 7. d4 {[%clk 0:02:57]}  cxd4 {[%clk 0:02:42]} 8. Qxd4 {[%clk 0:02:58]}  Bg7 {[%clk 0:02:43]} 9. O-O {[%clk 0:02:56]}  O-O {[%clk 0:02:42]} 10. Qd3 {[%clk 0:02:54]}  a6 {[%clk 0:02:35]} 11. Bg5 {[%clk 0:02:50]}  h6 {[%clk 0:02:31]} 12. Bd2 {[%clk 0:02:40]}  Rc8 {[%clk 0:02:22]} 13. Rfe1 {[%clk 0:02:21]}  Nc6 {[%clk 0:02:12]} 14. Nd5 {[%clk 0:02:21]}  Qd8 {[%clk 0:01:48]} 15. Nxf6+ {[%clk 0:02:18]}  Bxf6 {[%clk 0:01:49]} 16. Bxh6 {[%clk 0:02:17]}  Bxb2 {[%clk 0:01:49]} 17. Rab1 {[%clk 0:02:17]}  Bf6 {[%clk 0:01:41]} 18. Rxb7 {[%clk 0:02:05]}  Na5 {[%clk 0:01:35]} 19. Rb4 {[%clk 0:01:57]}  Qc7 {[%clk 0:01:35]} 20. Bg5 {[%clk 0:01:41]}  Qc5 {[%clk 0:01:25]} 21. Bxf6 {[%clk 0:01:38]}  Qxb4 {[%clk 0:01:23]} 22. Bxe7 {[%clk 0:01:37]}  Nxc4 {[%clk 0:01:19]} 23. Qd4 {[%clk 0:01:21]}  Rab8 {[%clk 0:01:07]} 24. h4 {[%clk 0:01:04]}  Ne5 {[%clk 0:01:02]} 25. Qxb4 {[%clk 0:00:58]}  Nxf3+ {[%clk 0:01:02]} 26. gxf3 {[%clk 0:00:59]}  Rxb4 {[%clk 0:01:03]} 27. Bxd6 {[%clk 0:00:59]}  Rb2 {[%clk 0:01:03]} 28. a3 {[%clk 0:00:54]}  Rcc2 {[%clk 0:01:02]} 29. Rf1 {[%clk 0:00:50]}  Rb3 {[%clk 0:00:51]} 30. Kg2 {[%clk 0:00:49]}  Rcc3 {[%clk 0:00:47]} 31. f4 {[%clk 0:00:45]}  Rd3 {[%clk 0:00:41]} 32. Be7 {[%clk 0:00:37]}  Rd7 {[%clk 0:00:32]} 33. Bf6 {[%clk 0:00:24]}  Rd6 {[%clk 0:00:24]} 34. e5 {[%clk 0:00:21]}  Rc6 {[%clk 0:00:18]} 35. Rd1 {[%clk 0:00:18]}  Rc8 {[%clk 0:00:18]} 36. h5 {[%clk 0:00:10]}  gxh5 {[%clk 0:00:09]} 37. Rh1 {[%clk 0:00:10]}  Kf8 {[%clk 0:00:03]} 38. Rxh5 {[%clk 0:00:09]}  Ke8 {[%clk 0:00:04]} 39. f5 {[%clk 0:00:07]}  Rc6 {[%clk 0:00:02]} 40. Rh8+ {[%clk 0:00:06]}  Kd7 {[%clk 0:00:02]} 41. Rf8 {[%clk 0:00:06]}  Rxf6 {[%clk 0:00:02]} 42. exf6 {[%clk 0:00:07]}  Rxa3 {[%clk 0:00:02]} 43. Rxf7+ {[%clk 0:00:07]}  Ke8 {[%clk 0:00:03]} 44. Ra7 {[%clk 0:00:06]}  Kf8 {[%clk 0:00:01]} 45. f3 {[%clk 0:00:04]}  Ra5 {[%clk 0:00:02]} 46. Kg3 {[%clk 0:00:03]}  Rxf5 {[%clk 0:00:02]} 47. Rxa6 {[%clk 0:00:04]}  Kf7 {[%clk 0:00:03]} 48. Kg4 {[%clk 0:00:04]}  Rb5 {[%clk 0:00:03]} 49. Rc6 {[%clk 0:00:03]}  Ra5 {[%clk 0:00:03]} 50. f4 {[%clk 0:00:04]}  Rb5 {[%clk 0:00:04]} 51. Ra6 {[%clk 0:00:03]}  Rc5 {[%clk 0:00:04]} 52. f5 {[%clk 0:00:03]}  Rc1 {[%clk 0:00:04]} 53. Kg5 {[%clk 0:00:03]}  Rg1+ {[%clk 0:00:04]} 54. Kf4 {[%clk 0:00:04]}  Rf1+ {[%clk 0:00:05]} 55. Kg5 {[%clk 0:00:04]}  Rg1+ {[%clk 0:00:05]} 56. Kf4 {[%clk 0:00:05]}  Rf1+ {[%clk 0:00:06]} 57. Kg5 {[%clk 0:00:05]}  Rg1+ {[%clk 0:00:07]} 1/2-1/2